bitfinex/quotes_BTCUSD_20250615
["timestamp","ask_amount","ask_price","bid_price","bid_amount"]
[1750024871640,1.64666956,104960.0,104950.0,0.001]
[1750024875358,1.64666956,104960.0,104950.0,0.039084]
[1750024875588,1.03266028,104960.0,104950.0,0.039084]
[1750024876456,1.64666956,104960.0,104950.0,0.039084]
[1750024876920,1.03266028,104960.0,104950.0,0.069284]
[1750024877132,1.03266028,104960.0,104950.0,0.101384]
[1750024877980,1.64666956,104960.0,104950.0,0.101384]
[1750024878431,1.64866956,104960.0,104950.0,0.100384]
[1750024878860,1.64966956,104960.0,104950.0,0.100384]
[1750024882192,1.62101856,104960.0,104950.0,0.100384]
[1750024883582,1.00700928,104960.0,104950.0,0.100384]
[1750024887522,1.62101856,104960.0,104950.0,0.100384]
[1750024887967,1.62101856,104960.0,104950.0,0.0623]
[1750024890321,0.393,104960.0,104950.0,0.0623]
[1750024890537,1.00700928,104960.0,104950.0,0.0623]
[1750024891593,1.62101856,104960.0,104950.0,0.0623]
[1750024892480,1.00700928,104960.0,104950.0,0.0623]
[1750024897283,0.95700928,104960.0,104950.0,0.0623]
[1750024897538,1.00700928,104960.0,104950.0,0.0623]
[1750024898466,0.393,104960.0,104950.0,0.0623]
[1750024898697,1.00700928,104960.0,104950.0,0.0623]
[1750024899131,0.95700928,104960.0,104950.0,0.0623]
[1750024899350,1.00700928,104960.0,104950.0,0.0623]
[1750024902756,1.62101856,104960.0,104950.0,0.0623]
[1750024902982,1.57101856,104960.0,104950.0,0.0623]
[1750024903245,1.62101856,104960.0,104950.0,0.0623]
[1750024903698,1.00700928,104960.0,104950.0,0.0623]
[1750024906970,0.95700928,104960.0,104950.0,0.0623]
[1750024907197,1.00700928,104960.0,104950.0,0.0623]
[1750024909993,0.95700928,104960.0,104950.0,0.0302]
[1750024910253,0.34,104950.0,104940.0,0.11853265]
[1750024910455,0.95400928,104950.0,104940.0,0.15977265]
[1750024910873,1.56801856,104950.0,104940.0,0.15977265]
[1750024911499,1.56801856,104950.0,104940.0,0.16077265]
[1750024913802,1.56801856,104950.0,104940.0,0.20018087]
[1750024916173,1.56801856,104950.0,104940.0,0.16077265]
[1750024918134,0.95400928,104950.0,104940.0,0.16077265]
[1750024921081,1.56801856,104950.0,104940.0,0.16077265]
[1750024925831,1.61801856,104950.0,104940.0,0.11953265]
[1750024926050,1.68051856,104950.0,104930.0,0.04106007]
[1750024926280,1.56801856,104940.0,104930.0,0.02475007]
[1750024926715,1.59610701,104940.0,104930.0,0.02475007]
[1750024928777,1.59610701,104940.0,104930.0,0.02575007]
[1750024929202,1.59610701,104940.0,104930.0,0.05835007]
[1750024930449,1.69225623,104940.0,104930.0,0.05835007]
[1750024930651,1.69225623,104940.0,104930.0,0.02575007]
[1750024931492,1.69225623,104940.0,104930.0,0.001]
[1750024931949,1.72225623,104940.0,104930.0,0.001]
[1750024932398,1.77225623,104940.0,104930.0,0.001]
[1750024937397,1.67610701,104940.0,104930.0,0.001]
[1750024937676,1.64610701,104940.0,104930.0,0.001]
[1750024937911,1.67900701,104940.0,104930.0,0.001]
[1750024938179,2.32401629,104940.0,104930.0,0.001]
[1750024938615,1.71000701,104940.0,104930.0,0.001]
[1750024938847,1.75657391,104940.0,104930.0,0.001]
[1750024939070,1.75657391,104940.0,104920.0,0.04124]
[1750024939071,0.34,104930.0,104920.0,0.04124]
[1750024939292,0.95400928,104930.0,104920.0,0.07334]
[1750024941905,0.95400928,104930.0,104920.0,0.07434]
[1750024943544,1.0501585,104930.0,104920.0,0.001]
[1750024943758,1.77746778,104930.0,104920.0,0.001]
[1750024943988,0.05,104920.0,104910.0,0.004]
[1750024944190,1.27801856,104920.0,104910.0,0.004]
[1750024944625,0.05,104920.0,104910.0,0.004]
[1750024944825,0.80231652,104920.0,104910.0,0.16324176]
[1750024945042,0.80231652,104920.0,104910.0,0.23263918]
[1750024945043,0.46231652,104920.0,104910.0,0.23263918]
[1750024945271,0.01177057,104920.0,104910.0,0.25685409]
[1750024945481,0.45054595,104930.0,104910.0,0.44949377]
[1750024945697,0.45054595,104930.0,104920.0,0.23483112]
[1750024945921,0.79054595,104930.0,104920.0,0.09624176]
[1750024946148,1.41934112,104930.0,104910.0,0.10636011]
[1750024946372,0.9010919,104920.0,104910.0,0.20454403]
[1750024946621,0.40166663,104930.0,104920.0,0.063]
[1750024946848,0.80221258,104930.0,104920.0,0.15924176]
[1750024947071,0.46221258,104930.0,104920.0,0.2162996]
[1750024947740,0.47203346,104930.0,104920.0,0.2574596]
[1750024947950,0.46221258,104930.0,104920.0,0.2574596]
[1750024948788,0.01166663,104930.0,104920.0,0.2574596]
[1750024948998,0.4003019,104930.0,104920.0,0.2574596]
[1750024952987,0.41173082,104930.0,104920.0,0.2574596]
[1750024953457,1.15203272,104930.0,104920.0,0.09624176]
[1750024953688,0.75173082,104930.0,104920.0,0.12674176]
[1750024953917,0.75173082,104930.0,104920.0,0.25873979]
[1750024954150,0.75173082,104930.0,104920.0,0.2166996]
[1750024954615,0.41173082,104930.0,104920.0,0.2166996]
[1750024955491,0.70914,104970.0,104930.0,0.01454085]
[1750024955720,0.4503019,104960.0,104950.0,0.0635]
[1750024955966,0.4003019,104960.0,104950.0,0.25798774]
[1750024956211,0.4503019,104960.0,104950.0,0.25798774]
[1750024956422,0.7903019,104960.0,104950.0,0.20090176]
[1750024956642,0.7903019,104960.0,104950.0,0.29601532]
[1750024956876,0.80207264,104960.0,104950.0,0.23892934]
[1750024957116,0.80212006,104960.0,104950.0,0.29601532]
[1750024957555,1.20242196,104960.0,104950.0,0.23892934]
[1750024957765,1.20242196,104960.0,104950.0,0.19776934]
[1750024957984,0.80212006,104960.0,104950.0,0.23892934]
[1750024958194,0.80612006,104960.0,104950.0,0.23892934]
[1750024958413,0.75612006,104960.0,104950.0,0.23892934]
[1750024958635,0.75612006,104960.0,104950.0,0.30349727]
[1750024958854,0.75612006,104960.0,104950.0,0.25798774]
[1750024959522,0.41612006,104960.0,104950.0,0.23889284]
[1750024961502,0.41612006,104960.0,104950.0,0.20090176]
[1750024961947,0.41612006,104960.0,104950.0,0.15974176]
[1750024962174,0.81642196,104960.0,104950.0,0.04116]
[1750024962396,0.41612006,104960.0,104950.0,0.22995887]
[1750024962611,0.01581816,104960.0,104950.0,0.21444261]
[1750024962831,0.01581816,104960.0,104950.0,0.25243369]
[1750024963052,0.00404742,104960.0,104950.0,0.46205685]
[1750024963277,0.00404742,104960.0,104950.0,0.47158474]
[1750024963740,0.00204742,104960.0,104950.0,0.43042474]
[1750024963983,4.742e-05,104960.0,104950.0,0.50321827]
[1750024964403,4.742e-05,104960.0,104950.0,0.51274625]
[1750024964657,4.742e-05,104960.0,104950.0,0.52227414]
[1750024964897,4.742e-05,104960.0,104950.0,0.21227369]
[1750024964898,0.40034932,104960.0,104950.0,0.21227369]
[1750024965110,0.40034932,104960.0,104950.0,0.41239369]
[1750024965335,0.80065122,104960.0,104950.0,0.09724176]
[1750024965565,0.83075122,104960.0,104950.0,0.001]
[1750024966680,0.40034932,104960.0,104950.0,0.19990176]
[1750024966897,0.40034932,104960.0,104950.0,0.2607895]
[1750024967111,0.74034932,104960.0,104950.0,0.19990176]
[1750024967579,0.74034932,104960.0,104950.0,0.15874176]
[1750024969174,0.74034932,104960.0,104950.0,0.35894176]
[1750024969408,0.74034932,104960.0,104950.0,0.19673284]
[1750024970707,0.34004742,104960.0,104950.0,0.19673284]
[1750024970934,0.74034932,104960.0,104950.0,0.42987366]
[1750024972765,0.40034932,104960.0,104950.0,0.42987366]
[1750024973842,4.742e-05,104960.0,104950.0,0.42987366]
[1750024974103,0.40034932,104960.0,104950.0,0.39693284]
[1750024976509,0.40034932,104960.0,104950.0,0.45401882]
[1750024980806,4.742e-05,104960.0,104950.0,0.46855967]
[1750024981044,4.742e-05,104960.0,104950.0,0.63066377]
[1750024981298,4.742e-05,104960.0,104950.0,0.58310595]
[1750024981571,4.742e-05,104960.0,104950.0,0.58310586]
[1750024981811,4.742e-05,104960.0,104950.0,0.58310595]
[1750024982250,4.742e-05,104960.0,104950.0,0.57357779]
[1750024982461,4.742e-05,104960.0,104950.0,0.57357788]
[1750024982675,4.742e-05,104960.0,104950.0,0.58310604]
[1750024982903,4.742e-05,104960.0,104950.0,0.59263411]
[1750024983118,4.742e-05,104960.0,104950.0,0.60216209]
[1750024983339,4.742e-05,104960.0,104950.0,0.61168998]
[1750024983563,4.742e-05,104960.0,104950.0,0.68763885]
[1750024983774,4.742e-05,104960.0,104950.0,0.68263885]
[1750024985603,4.742e-05,104960.0,104950.0,0.68015885]
[1750024986722,0.24017018,104970.0,104960.0,0.28564422]
[1750024987016,0.24017018,104970.0,104960.0,0.4484112]
[1750024987267,0.34,104980.0,104970.0,0.0314]
[1750024987493,0.01170223,104980.0,104970.0,0.56178454]
[1750024987706,0.01170223,104980.0,104970.0,0.58793754]
[1750024987925,4.743e-05,104980.0,104970.0,0.61651584]
[1750024989005,0.00104743,104980.0,104970.0,1.00981977]
[1750024989665,0.00104743,104980.0,104970.0,0.60951787]
[1750024990321,0.00104743,104980.0,104970.0,0.61151787]
[1750024990573,4.743e-05,104980.0,104970.0,0.61151787]
[1750024991022,4.743e-05,104980.0,104970.0,0.61251787]
[1750024991685,4.743e-05,104980.0,104970.0,0.64114987]
[1750024992144,4.743e-05,104980.0,104970.0,0.48254987]
[1750024992361,4.743e-05,104980.0,104970.0,0.68346987]
[1750024993018,4.743e-05,104980.0,104970.0,0.48254987]
[1750024993237,4.743e-05,104980.0,104970.0,0.68342987]
[1750024996242,4.743e-05,104980.0,104970.0,0.68358987]
[1750024996919,4.743e-05,104980.0,104970.0,0.75953937]
[1750024997135,4.743e-05,104980.0,104970.0,0.55849937]
[1750024997353,4.743e-05,104980.0,104970.0,0.75941937]
[1750024998085,4.743e-05,104980.0,104970.0,1.08377177]
[1750025000126,4.743e-05,104980.0,104970.0,1.42377177]
[1750025000351,0.01130321,105000.0,104990.0,0.21906765]
[1750025000568,0.4003019,105010.0,105000.0,0.04514085]
[1750025000800,0.40077632,105010.0,105000.0,0.22151031]
[1750025001021,0.00047442,105010.0,105000.0,0.54008092]
[1750025001236,0.00047442,105010.0,105000.0,0.44102912]
[1750025001481,0.00047442,105010.0,105000.0,0.54534986]
[1750025001731,0.00047442,105010.0,105000.0,0.74666986]
[1750025001969,0.00447442,105010.0,105000.0,0.74666986]
[1750025002255,0.00447442,105010.0,105000.0,0.67097412]
[1750025002497,0.00447442,105010.0,105000.0,1.76154302]
[1750025002704,0.02,105020.0,105010.0,0.6235665]
[1750025002921,0.02,105020.0,105010.0,0.87595348]
[1750025003142,0.02014224,105020.0,105010.0,1.27625538]
[1750025003418,0.004,105030.0,105020.0,0.68474565]
[1750025003663,0.00406,105080.0,105070.0,0.21890059]
[1750025003884,0.00406,105080.0,105070.0,0.40089043]
[1750025004114,0.00420227,105080.0,105070.0,0.65039147]
[1750025004348,0.00420227,105080.0,105070.0,0.67967738]
[1750025004577,0.00420227,105080.0,105070.0,0.71987421]
[1750025004817,0.00420227,105080.0,105070.0,1.12017611]
[1750025005044,0.00420227,105080.0,105070.0,0.53556812]
[1750025005308,0.00420227,105080.0,105070.0,0.49143098]
[1750025005543,0.00420227,105080.0,105070.0,0.71033157]
[1750025005775,0.00420227,105080.0,105070.0,0.67973157]
[1750025006061,0.00420227,105080.0,105070.0,0.67977157]
[1750025006312,0.00420227,105080.0,105070.0,0.6422092]
[1750025006551,0.00420227,105080.0,105070.0,0.50845157]
[1750025006793,0.00420227,105080.0,105070.0,0.6772092]
[1750025007027,0.00420227,105080.0,105070.0,0.71477157]
[1750025007290,0.00420227,105080.0,105070.0,0.6451692]
[1750025007531,0.00420227,105080.0,105070.0,0.4418892]
[1750025007765,0.00420227,105080.0,105070.0,0.6451692]
[1750025007997,0.00420227,105080.0,105070.0,0.6521692]
[1750025008230,0.00420227,105080.0,105070.0,0.6850692]
[1750025008708,0.00420227,105080.0,105070.0,0.6235779]
[1750025008930,0.00420227,105080.0,105070.0,0.42985518]
[1750025009151,0.00420227,105080.0,105070.0,0.66164639]
[1750025009371,0.00420227,105080.0,105070.0,0.67116322]
[1750025010157,0.00420227,105080.0,105070.0,0.67116331]
[1750025010385,0.00420227,105080.0,105070.0,0.70206331]
[1750025010611,0.03643911,105110.0,105090.0,0.25617878]
[1750025010832,0.0159088,105110.0,105100.0,0.27466261]
[1750025011510,0.0159088,105110.0,105100.0,0.11078261]
[1750025011737,0.42272973,105110.0,105100.0,0.11078261]
[1750025012003,0.42272973,105110.0,105100.0,0.09624176]
[1750025012251,0.84602973,105110.0,105100.0,0.09624176]
[1750025012524,0.84602973,105110.0,105100.0,0.30568176]
[1750025012962,0.87002105,105110.0,105100.0,0.30568176]
[1750025013202,0.49210012,105110.0,105100.0,0.12680994]
[1750025013440,0.49210012,105110.0,105100.0,0.30580176]
[1750025013441,0.40580012,105110.0,105100.0,0.30580176]
[1750025013656,0.78272105,105110.0,105100.0,0.30580176]
[1750025013871,0.78272105,105110.0,105100.0,0.09624176]
[1750025014547,0.74982105,105110.0,105100.0,0.09624176]
[1750025015038,0.03590012,105110.0,105100.0,0.10586594]
[1750025015274,0.03590012,105110.0,105100.0,0.40575615]
[1750025015736,0.028603,105140.0,105110.0,0.01454085]
[1750025015956,0.02,105150.0,105140.0,0.01454085]
[1750025016177,0.02,105150.0,105140.0,0.11078261]
[1750025016388,0.02047424,105150.0,105140.0,0.11315989]
[1750025016612,0.02047424,105150.0,105140.0,0.32953772]
[1750025016837,0.8012161,105150.0,105140.0,0.09624176]
[1750025017060,0.8012161,105150.0,105120.0,0.21092]
[1750025017061,0.0825,105140.0,105120.0,0.21092]
[1750025017288,0.4295,105140.0,105130.0,0.09624176]
[1750025017515,0.007,105140.0,105130.0,0.33193615]
[1750025017743,0.007,105140.0,105130.0,0.41075826]
[1750025017962,0.007,105140.0,105130.0,0.42116965]
[1750025018175,0.007,105140.0,105130.0,0.63288965]
[1750025018398,0.007,105140.0,105130.0,0.70847901]
[1750025018609,0.02047424,105150.0,105140.0,0.20924435]
[1750025018865,0.02940235,105150.0,105140.0,0.31499678]
[1750025019082,0.02940235,105150.0,105140.0,0.38649173]
[1750025019296,0.02940232,105150.0,105140.0,0.40551298]
[1750025019516,0.0294023,105150.0,105140.0,0.41502347]
[1750025019732,0.02047424,105150.0,105140.0,0.49622347]
[1750025020230,0.02940195,105150.0,105140.0,0.49622347]
[1750025020449,0.02940195,105150.0,105140.0,0.53022347]
[1750025020450,0.02047424,105150.0,105140.0,0.53022347]
[1750025020672,0.02940195,105150.0,105140.0,0.49722347]
[1750025020893,0.02940195,105150.0,105140.0,0.29697535]
[1750025021126,0.40332341,105150.0,105140.0,0.52951629]
[1750025021405,0.4033232,105150.0,105140.0,0.55804884]
[1750025021621,0.4033232,105150.0,105140.0,0.31552176]
[1750025021622,0.42739517,105150.0,105140.0,0.31552176]
[1750025021856,0.43632381,105150.0,105140.0,0.31452176]
[1750025022075,0.45939517,105150.0,105140.0,0.31452176]
[1750025022294,0.45939517,105150.0,105140.0,0.31668176]
[1750025022505,0.46832449,105150.0,105140.0,0.31668176]
[1750025022762,0.09440355,105150.0,105140.0,0.34834994]
[1750025022974,0.46832448,105150.0,105140.0,0.34834994]
[1750025023199,0.4683245,105150.0,105140.0,0.10224176]
[1750025023413,0.46832451,105150.0,105140.0,0.31668176]
[1750025023848,0.45939517,105150.0,105140.0,0.31668176]
[1750025024103,0.08547424,105150.0,105140.0,0.10224176]
[1750025024320,0.45939517,105150.0,105140.0,0.31660176]
[1750025024535,0.45939517,105150.0,105140.0,0.10224176]
[1750025024752,0.46832456,105150.0,105140.0,0.10224176]
[1750025024969,0.46832464,105150.0,105140.0,0.10224176]
[1750025025182,0.83305914,105150.0,105140.0,0.10224176]
[1750025025445,1.1911756,105150.0,105140.0,0.006]
[1750025025664,0.84939517,105150.0,105140.0,0.006]
[1750025025882,0.3708,105140.0,105130.0,0.16716]
[1750025026089,0.3708,105140.0,105130.0,0.09624176]
[1750025026308,0.37973047,105140.0,105130.0,0.09624176]
[1750025026527,0.37973025,105140.0,105130.0,0.13484087]
[1750025026774,0.37973033,105140.0,105130.0,0.13484087]
[1750025026988,0.0397303,105140.0,105130.0,0.13484087]
[1750025027196,0.40472093,105140.0,105130.0,0.13484087]
[1750025027412,0.38285121,105140.0,105130.0,0.13684087]
[1750025027623,0.37392093,105140.0,105130.0,0.13684087]
[1750025028022,0.00893001,105140.0,105130.0,0.3440002]
[1750025028246,0.00892985,105140.0,105130.0,0.3511344]
[1750025028434,0.02047424,105150.0,105140.0,0.01454085]
[1750025028638,0.02940301,105150.0,105140.0,0.39271299]
[1750025028839,0.02047424,105150.0,105140.0,0.39271299]
[1750025029040,0.02940297,105150.0,105140.0,0.39271299]
[1750025029411,0.02047424,105150.0,105140.0,0.58293555]
[1750025029616,0.02347424,105150.0,105140.0,0.60295752]
[1750025029820,0.03640253,105150.0,105140.0,0.62197877]
[1750025030034,0.03640233,105150.0,105140.0,0.65447877]
[1750025030241,0.03640193,105150.0,105140.0,0.65447877]
[1750025030681,0.02747424,105150.0,105140.0,0.65447877]
[1750025030903,0.02747424,105150.0,105140.0,0.68497877]
[1750025031113,0.02747424,105150.0,105140.0,0.72254114]
[1750025031331,0.02747424,105150.0,105140.0,0.77254114]
[1750025031549,0.02747424,105150.0,105140.0,0.82910287]
[1750025031982,0.02447424,105150.0,105140.0,0.82810287]
[1750025032187,0.02447424,105150.0,105140.0,1.1305405]
[1750025032188,0.02047424,105150.0,105140.0,1.1305405]
[1750025032408,0.02047424,105150.0,105140.0,1.07397877]
[1750025032617,0.02047424,105150.0,105140.0,1.10306525]
[1750025032825,0.02047424,105150.0,105140.0,1.17848089]
[1750025033064,0.02047424,105150.0,105140.0,1.15039441]
[1750025033242,0.02047424,105150.0,105140.0,1.18048089]
[1750025033657,0.02047424,105150.0,105140.0,1.20477561]
[1750025033862,0.0373,105200.0,105140.0,1.56718605]
[1750025033863,0.20707236,105200.0,105140.0,1.56718605]
[1750025034070,0.37406319,105200.0,105180.0,0.09624176]
[1750025034326,0.00014226,105200.0,105190.0,0.21388]
[1750025034506,0.42406319,105200.0,105190.0,0.31012176]
[1750025034926,0.42406319,105200.0,105190.0,0.31004176]
[1750025035150,0.42406319,105200.0,105190.0,0.09624176]
[1750025035365,0.37406319,105200.0,105190.0,0.31008176]
[1750025035616,0.37406319,105200.0,105190.0,0.34266728]
[1750025035819,0.42906319,105200.0,105190.0,0.34266728]
[1750025036041,0.39735289,105200.0,105190.0,0.34266728]
[1750025036452,0.39935289,105200.0,105190.0,0.34266728]
[1750025036874,0.02543196,105200.0,105190.0,0.34266728]
[1750025037082,0.39935289,105200.0,105190.0,0.34266728]
[1750025037707,0.00514226,105200.0,105190.0,0.56139814]
[1750025037913,0.00514226,105200.0,105190.0,0.60893899]
[1750025038172,0.00514226,105200.0,105190.0,0.64063899]
[1750025038597,0.00514226,105200.0,105190.0,1.10210531]
[1750025038807,0.00514226,105200.0,105190.0,0.74695708]
[1750025038808,0.00214226,105200.0,105190.0,0.74695708]
[1750025039013,0.00214226,105200.0,105190.0,0.3208562]
[1750025039225,0.00014226,105200.0,105190.0,0.69055899]
[1750025039485,0.71406319,105200.0,105190.0,0.09624176]
[1750025039695,0.34114226,105200.0,105190.0,0.09624176]
[1750025040340,0.71406319,105200.0,105190.0,0.31436176]
[1750025040560,0.71406319,105200.0,105190.0,0.09824176]
[1750025040803,0.71406319,105200.0,105190.0,0.14524176]
[1750025041011,0.77516319,105200.0,105190.0,0.09824176]
[1750025041230,0.00014226,105200.0,105190.0,0.11725451]
[1750025041452,0.00014226,105200.0,105190.0,0.55509953]
[1750025041686,0.05,105240.0,105220.0,0.1900732]
[1750025041902,0.0206495,105250.0,105230.0,0.21988]
[1750025042164,0.05,105240.0,105230.0,0.21988]
[1750025042373,0.00892215,105240.0,105230.0,0.21988]
[1750025042813,0.05,105240.0,105230.0,0.21988]
[1750025043010,0.05892196,105240.0,105230.0,0.21988]
[1750025043222,0.00892191,105240.0,105230.0,0.21988]
[1750025043427,0.00892191,105240.0,105230.0,0.22088]
[1750025043428,0.394,105240.0,105230.0,0.22088]
[1750025043852,0.00892158,105240.0,105230.0,0.21988]
[1750025044056,0.00892141,105240.0,105230.0,0.21988]
[1750025044273,0.0706495,105250.0,105230.0,0.21988]
[1750025044480,0.41957084,105250.0,105230.0,0.25118]
[1750025044700,0.07957081,105250.0,105220.0,0.00950389]
[1750025044907,0.66266536,105230.0,105210.0,0.0617]
[1750025045107,0.66266536,105230.0,105210.0,0.49109956]
[1750025045324,0.66266536,105230.0,105220.0,0.19958164]
[1750025045325,0.34,105230.0,105220.0,0.19958164]
[1750025045539,0.34,105230.0,105220.0,0.0095038]
[1750025045758,0.34,105230.0,105220.0,0.17420683]
[1750025045963,0.34,105230.0,105220.0,0.21611072]
[1750025046163,0.341,105230.0,105220.0,0.43391112]
[1750025046375,0.341,105230.0,105220.0,0.32592176]
[1750025046587,0.34,105230.0,105220.0,0.32592176]
[1750025046792,0.34,105230.0,105220.0,0.32616176]
[1750025047002,0.341,105230.0,105220.0,0.09624176]
[1750025047209,0.66366536,105230.0,105220.0,0.32616176]
[1750025047422,0.66366536,105230.0,105220.0,0.27384176]
[1750025047623,0.341,105230.0,105220.0,0.27384176]
[1750025047835,0.341,105230.0,105220.0,0.12884994]
[1750025048045,0.341,105230.0,105220.0,0.09624176]
[1750025048676,0.341,105230.0,105220.0,0.27392176]
[1750025049294,0.341,105230.0,105220.0,0.28342565]
[1750025049516,0.341,105230.0,105220.0,0.27392176]
[1750025050522,0.341,105230.0,105220.0,0.47350358]
[1750025050726,0.341,105230.0,105220.0,0.27392176]
[1750025051159,0.341,105230.0,105220.0,0.34951112]
[1750025051368,0.341,105230.0,105220.0,0.40167112]
[1750025051599,0.66366536,105230.0,105220.0,0.09624176]
[1750025051955,0.66210536,105230.0,105220.0,0.09624176]
[1750025052785,0.33944,105230.0,105220.0,0.12888994]
[1750025053048,0.33944,105230.0,105220.0,0.09624176]
[1750025053367,0.33944,105230.0,105220.0,0.17183112]
[1750025055194,0.33944,105230.0,105220.0,0.37141285]
[1750025055404,0.33944,105230.0,105220.0,0.17183112]
[1750025055827,0.33944,105230.0,105220.0,0.21453501]
[1750025056055,0.33944,105230.0,105220.0,0.24573501]
[1750025056271,0.33944,105230.0,105220.0,0.16064176]
[1750025056702,0.33944,105230.0,105220.0,0.45719565]
[1750025056923,0.33944,105230.0,105220.0,0.46432326]
[1750025057133,0.001,105230.0,105220.0,0.47886411]
[1750025057558,0.001,105230.0,105220.0,0.25077197]
[1750025057766,0.001,105230.0,105220.0,0.39044176]
[1750025057984,0.001,105230.0,105220.0,0.35924176]
[1750025058199,0.001,105230.0,105220.0,0.40617347]
[1750025058428,0.001,105230.0,105220.0,0.60575511]
[1750025058635,0.001,105230.0,105220.0,0.6569619]
[1750025058850,0.001,105230.0,105220.0,0.44170275]
[1750025059064,0.001,105230.0,105220.0,0.74701211]
[1750025059280,0.001,105230.0,105220.0,0.72756461]
[1750025059947,0.001,105230.0,105220.0,0.6901367]
[1750025060169,0.001,105230.0,105220.0,1.1576652]
[1750025060385,0.0001421,105250.0,105240.0,0.23308782]
[1750025060604,0.0001421,105250.0,105240.0,0.97726774]
[1750025060818,0.0001421,105250.0,105240.0,1.04602401]
[1750025061082,0.0001421,105250.0,105240.0,0.86818401]
[1750025061303,0.0001421,105250.0,105240.0,0.79259465]
[1750025061527,0.0001421,105250.0,105240.0,1.02559465]
[1750025062178,0.0001421,105250.0,105240.0,1.02951465]
[1750025063296,0.0001421,105250.0,105240.0,1.03551465]
[1750025063728,0.0001421,105250.0,105240.0,1.35818001]
[1750025063955,1.209e-05,105250.0,105240.0,1.28315494]
[1750025064187,0.06055561,105320.0,105280.0,0.01899677]
[1750025064188,0.35446536,105320.0,105280.0,0.01899677]
[1750025064398,0.03773435,105310.0,105290.0,0.35742719]
[1750025064619,0.00047377,105320.0,105300.0,0.25083287]
[1750025064889,0.00047377,105320.0,105310.0,0.20718543]
[1750025065111,0.00047377,105320.0,105310.0,0.12434719]
[1750025065333,0.00047377,105320.0,105310.0,0.35774719]
[1750025065557,0.00747377,105320.0,105310.0,0.39044719]
[1750025065780,0.00747377,105320.0,105310.0,0.12434719]
[1750025065997,0.38213913,105320.0,105310.0,0.09624176]
[1750025066249,0.72013913,105320.0,105310.0,0.27700176]
[1750025066483,0.72013913,105320.0,105310.0,0.27696176]
[1750025066699,0.71513913,105320.0,105310.0,0.09624176]
[1750025067127,0.43049153,105320.0,105310.0,0.09624176]
[1750025067340,0.75715689,105320.0,105310.0,0.09624176]
[1750025067765,0.43449153,105320.0,105310.0,0.09624176]
[1750025067979,0.75715689,105320.0,105290.0,0.02810543]
[1750025068194,0.05,105310.0,105300.0,0.33088176]
[1750025068408,0.37266536,105310.0,105300.0,0.09624176]
[1750025068619,0.44838105,105310.0,105300.0,0.09624176]
[1750025068849,0.39,105300.0,105270.0,0.14116869]
[1750025069073,0.71266536,105300.0,105280.0,0.09624176]
[1750025069291,0.71266536,105290.0,105280.0,0.33136176]
[1750025069509,0.39,105290.0,105280.0,0.33136176]
[1750025069733,0.71266536,105290.0,105280.0,0.09624176]
[1750025070901,0.39,105290.0,105280.0,0.09624176]
[1750025071586,0.39,105290.0,105280.0,0.10224176]
[1750025072043,0.34,105280.0,105260.0,0.06554021]
[1750025072254,0.66266536,105280.0,105270.0,0.09624176]
[1750025072527,0.34,105280.0,105270.0,0.10867257]
[1750025072710,0.34,105280.0,105270.0,0.18426193]
[1750025073147,0.34,105300.0,105270.0,0.21232824]
[1750025073366,0.00047348,105280.0,105270.0,0.21232824]
[1750025073590,0.00047348,105280.0,105270.0,0.09624176]
[1750025073830,0.00047348,105280.0,105270.0,0.15044176]
[1750025074047,0.00047348,105280.0,105270.0,0.15244176]
[1750025074462,0.00047348,105280.0,105270.0,0.15644176]
[1750025074682,0.00047348,105280.0,105270.0,0.19299257]
[1750025074903,0.00047348,105280.0,105270.0,0.26858193]
[1750025075132,0.00047348,105280.0,105270.0,0.45856958]
[1750025075354,0.00047348,105280.0,105270.0,0.52613518]
[1750025075577,0.00047348,105280.0,105270.0,0.32664824]
[1750025076221,0.00047348,105280.0,105270.0,0.5356342]
[1750025076569,0.00047348,105280.0,105270.0,0.29009743]
[1750025076659,0.00047348,105280.0,105270.0,0.4139951]
[1750025076876,0.00047348,105280.0,105270.0,0.5512817]
[1750025077094,0.00047348,105280.0,105270.0,0.53228375]
[1750025077316,0.00047348,105280.0,105270.0,0.52278446]
[1750025077535,0.00047348,105280.0,105270.0,0.32329743]
[1750025077778,0.00047348,105280.0,105270.0,0.24770807]
[1750025078001,0.34047348,105280.0,105270.0,0.36530807]
[1750025078227,0.66313884,105280.0,105270.0,0.15644176]
[1750025078660,0.34047348,105280.0,105270.0,0.19671996]
[1750025078883,0.00047348,105280.0,105270.0,0.19671996]
[1750025079146,0.34047348,105280.0,105270.0,0.22478627]
[1750025079355,0.34047348,105280.0,105270.0,0.14251996]
[1750025079563,0.34047348,105280.0,105270.0,0.33720176]
[1750025079772,0.66313884,105280.0,105270.0,0.10224176]
[1750025080229,0.66313884,105280.0,105270.0,0.006]
[1750025080488,0.77363884,105280.0,105270.0,0.006]
[1750025080689,0.77363884,105280.0,105250.0,0.0542]
[1750025080690,0.66266536,105260.0,105250.0,0.0542]
[1750025080901,0.66266536,105260.0,105250.0,0.15044176]
[1750025081111,0.34,105260.0,105250.0,0.09624176]
[1750025082207,0.71266536,105270.0,105250.0,0.10024176]
[1750025082427,0.32266536,105260.0,105250.0,0.10024176]
[1750025083128,0.32266536,105260.0,105250.0,0.13659657]
[1750025083348,0.0801,105270.0,105250.0,0.13659657]
[1750025083571,0.32266536,105260.0,105250.0,0.13659657]
[1750025083790,0.0801,105270.0,105250.0,0.13659657]
[1750025084012,0.40276536,105270.0,105250.0,0.13659657]
[1750025084262,0.37266536,105270.0,105250.0,0.13659657]
[1750025084477,0.71266536,105270.0,105250.0,0.13659657]
[1750025084911,0.71266536,105270.0,105250.0,0.10024176]
[1750025085132,0.71266536,105270.0,105250.0,0.09624176]
[1750025085344,0.71666536,105270.0,105250.0,0.1243931]
[1750025085565,0.66666536,105270.0,105250.0,0.1243931]
[1750025085780,0.71666536,105270.0,105250.0,0.1243931]
[1750025086224,0.66666536,105270.0,105250.0,0.1243931]
[1750025086440,0.71666536,105270.0,105250.0,0.1243931]
[1750025087132,0.344,105270.0,105260.0,0.09624176]
[1750025087538,0.394,105270.0,105260.0,0.09624176]
[1750025087751,0.344,105270.0,105260.0,0.09624176]
[1750025087972,0.344,105270.0,105260.0,0.11242846]
[1750025088196,0.34,105270.0,105260.0,0.46917486]
[1750025088403,0.34,105270.0,105260.0,0.50699745]
[1750025088616,0.34,105270.0,105260.0,0.69749737]
[1750025088819,0.342,105270.0,105260.0,0.478992]
[1750025089058,0.342,105270.0,105260.0,0.45330502]
[1750025089265,0.342,105270.0,105260.0,0.37771566]
[1750025089494,0.342,105270.0,105260.0,0.34501566]
[1750025089709,0.342,105270.0,105260.0,0.16401566]
[1750025090119,0.342,105270.0,105260.0,0.22788688]
[1750025090454,0.342,105270.0,105260.0,0.26008688]
[1750025090676,0.342,105270.0,105260.0,0.19621566]